[Event "Pavlodar Open 2018"]
[Site "Pavlodar"]
[Date "2018.11.27"]
[Round "6"]
[White "Burmakin, Vladimir"]
[Black "Kargin, Arseny"]
[Result "1/2-1/2"]
[ECO "A07"]
[WhiteElo "2531"]
[BlackElo "2411"]
[Annotator "RC"]
[PlyCount "37"]
[EventDate "2018.11.23"]
[EventType "swiss"]
[EventCountry "KAZ"]
[SourceTitle "playchess.com"]
[Source "ChessBase"]
[SourceQuality "1"]
[TimeControl "5400+30"]

1. Nf3 {[%emt 0:00:00]} d5 {[%emt 0:00:00]} 2. c4 {[%emt 0:00:55]} d4 {[%emt 0:00:35]} 3. g3 {[%emt 0:00:44]} Nc6 {[%emt 0:00:25]} 4. Bg2 {[%emt 0:00:07]} e5 {[%emt 0:00:13]} 5. O-O {[%emt 0:00:07]} Nf6 {[%emt 0:00:55]} 6. e3 {[%emt 0:02:24]} h6 {[%emt 0:15:32]} 7. exd4 {[%emt 0:01:02]} e4 {[%emt 0:10:31]} 8. Re1 {[%emt 0:33:35]} Be7 {[%emt 0:02:11]} 9. Ne5 {[%emt 0:00:08]} Nxd4 {[%emt 0:03:11]} 10. d3 {[%emt 0:04:27]} exd3 {[%emt 0:04:06]} 11. Re3 {[%emt 0:00:26]} Bf5 {[%emt 0:05:17]} 12. Bxb7 {[%emt 0:01:05]} O-O {[%emt 0:02:14]} 13. Nc3 {[%emt 0:01:20]} Rb8 {[%emt 0:12:52]} 14. Bg2 {[%emt 0:00:54]} Re8 {[%emt 0:10:10]} 15. g4 {[%emt 0:05:43]} Bd6 {[%emt 0:08:50]} 16. gxf5 {[%emt 0:01:20]} Bxe5 {[%emt 0:02:40]} 17. Rxd3 {[%emt 0:00:21]} c5 {[%emt 0:00:02]} 18. Nb5 {[%emt 0:09:45]} a6 {[%emt 0:04:06] Nxd4Bxd4 [%clk 0:15:38]} 19. Be3 {[%emt 0:03:53] Rxb2 [%clk 0:15:55]} 1/2-1/2

[Event "Pavlodar Open 2018"]
[Site "Pavlodar"]
[Date "2018.11.30"]
[Round "9"]
[White "Mirzoev, Azer"]
[Black "Zubarev, Alexander"]
[Result "1/2-1/2"]
[ECO "B07"]
[WhiteElo "2489"]
[BlackElo "2484"]
[Annotator "RC"]
[PlyCount "93"]
[EventDate "2018.11.23"]
[EventType "swiss"]
[EventCountry "KAZ"]
[SourceTitle "playchess.com"]
[Source "ChessBase"]
[SourceQuality "1"]
[TimeControl "5400+30"]

1. d4 {[%emt 0:06:13]} d6 {[%emt 0:00:52]} 2. Nf3 {[%emt 0:00:12]} g6 {[%emt 0:00:11]} 3. e4 {[%emt 0:00:11]} Nf6 {[%emt 0:00:32]} 4. Bd3 {[%emt 0:00:43]} Bg7 {[%emt 0:00:17]} 5. O-O {[%emt 0:00:07]} O-O {[%emt 0:00:13]} 6. c3 {[%emt 0:00:08]} c5 {[%emt 0:02:29]} 7. h3 {[%emt 0:06:14]} Nfd7 {[%emt 0:01:15]} 8. Re1 {[%emt 0:01:15]} Na6 {[%emt 0:00:35]} 9. Bg5 {[%emt 0:03:09]} Nc7 {[%emt 0:04:29]} 10. Nbd2 {[%emt 0:02:49]} b5 {[%emt 0:02:52]} 11. Qe2 {[%emt 0:04:35]} Ne6 {[%emt 0:14:17]} 12. Be3 {[%emt 0:01:11]} b4 {[%emt 0:00:22]} 13. d5 {[%emt 0:08:21]} bxc3 {[%emt 0:01:44]} 14. dxe6 {[%emt 0:00:49]} cxd2 {[%emt 0:00:07]} 15. exf7+ {[%emt 0:00:33]} Rxf7 {[%emt 0:00:14]} 16. Bxd2 {[%emt 0:01:55]} Ne5 {[%emt 0:03:07]} 17. Nxe5 {[%emt 0:04:17]} Bxe5 {[%emt 0:00:06]} 18. Bc4 {[%emt 0:00:08]} e6 {[%emt 0:00:18]} 19. Bc3 {[%emt 0:00:05]} Bxc3 {[%emt 0:04:37]} 20. bxc3 {[%emt 0:00:04]} Rb8 {[%emt 0:02:39]} 21. a4 {[%emt 0:07:38]} Qd7 {[%emt 0:32:01]} 22. a5 {[%emt 0:04:42]} Bb7 {[%emt 0:01:44]} 23. Rab1 {[%emt 0:08:50]} d5 {[%emt 0:03:02]} 24. a6 {[%emt 0:15:35]} dxc4 {[%emt 0:00:11]} 25. Qxc4 {[%emt 0:00:26]} Qd6 {[%emt 0:02:22]} 26. axb7 {[%emt 0:03:30]} Rbxb7 {[%emt 0:00:26]} 27. Rbd1 {[%emt 0:01:31]} Qe5 {[%emt 0:01:46]} 28. Re2 {[%emt 0:00:13]} Rfd7 {[%emt 0:02:19]} 29. Rf1 {[%emt 0:02:41]} Kg7 {[%emt 0:02:27]} 30. g3 {[%emt 0:00:36]} g5 {[%emt 0:01:22]} 31. Kg2 {[%emt 0:01:34]} Rf7 {[%emt 0:01:36]} 32. Ra1 {[%emt 0:01:51]} h5 {[%emt 0:07:31]} 33. Qd3 {[%emt 0:06:51]} Rbd7 {[%emt 0:00:57]} 34. Qe3 {[%emt 0:02:56]} c4 {[%emt 0:00:15]} 35. Rd2 {[%emt 0:02:59]} Rxd2 {[%emt 0:00:16]} 36. Qxd2 {[%emt 0:00:01]} Qxe4+ {[%emt 0:00:10]} 37. Kg1 {[%emt 0:00:01]} Qd5 {[%emt 0:02:34]} 38. Qe2 {[%emt 0:00:15]} h4 {[%emt 0:02:29]} 39. g4 {[%emt 0:01:15]} Rf3 {[%emt 0:01:08]} 40. Rxa7+ {[%emt 0:01:02]} Kg6 {[%emt 0:02:26]} 41. Rd7 {[%emt 0:01:42]} Qxd7 {[%emt 0:00:33]} 42. Qxf3 {[%emt 0:00:06]} Qb5 {[%emt 0:01:22]} 43. Qe4+ {[%emt 0:00:10]} Kf6 {[%emt 0:00:16]} 44. Qd4+ {[%emt 0:00:05]} Kg6 {[%emt 0:00:41]} 45. Qe4+ {[%emt 0:01:17]} Kf6 {[%emt 0:00:03]} 46. Qf3+ {[%emt 0:00:43]} Kg6 {[%emt 0:00:17]} 47. Qe4+ {[%emt 0:00:04]} 1/2-1/2